bitfinex-derivatives/quotes_SOLF0:USTF0_20250518
["timestamp","ask_amount","ask_price","bid_price","bid_amount"]
[1747577476174,5.7778,173.02,172.98,10.50635865]
[1747577476369,73.78,173.06,172.99,5.7787]
[1747577476570,73.78,173.06,172.98,4.72725865]
[1747577476976,73.78,173.06,172.99,4.72725865]
[1747577477475,5.7779,173.02,172.99,4.72725865]
[1747577479166,5.7776,173.03,172.99,5.7788]
[1747577479368,5.7776,173.03,172.96,147.18]
[1747577479369,73.78,173.06,172.96,147.18]
[1747577480074,73.78,173.06,172.98,5.779]
[1747577480581,5.778,173.02,172.98,5.779]
[1747577484872,5.7782,173.01,172.98,5.779]
[1747577485783,5.7779,173.02,172.98,5.779]
[1747577486484,5.7781,173.01,172.98,5.779]
[1747577486784,73.78,173.06,172.96,73.76]
[1747577487085,73.78,173.06,172.97,4.71928942]
[1747577487582,5.7787,173.0,172.97,4.71928942]
[1747577488686,5.7787,173.0,172.96,79.5396]
[1747577489090,5.7787,173.0,172.97,5.7794]
[1747577490085,5.7787,173.0,172.96,79.5397]
[1747577491090,5.7787,173.0,172.97,5.7794]
[1747577492090,73.78,173.06,172.96,5.7797]
[1747577492292,73.78,173.06,172.95,73.12]
[1747577492796,5.7787,173.0,172.95,73.12]
[1747577492987,73.78,173.06,172.95,73.12]
[1747577493496,5.7787,173.0,172.97,5.7794]
[1747577494295,5.7787,173.0,172.96,5.7797]
[1747577494490,5.7789,172.99,172.96,5.7797]
[1747577494889,73.78,173.06,172.95,73.12]
[1747577495194,5.7787,173.0,172.95,73.12]
[1747577495396,5.7787,173.0,172.96,5.7797]
[1747577496089,5.7787,173.0,172.97,5.7794]
[1747577496296,5.7788,172.99,172.96,4.72230829]
[1747577497193,5.7788,172.99,172.96,10.50180829]
[1747577497390,73.78,173.06,172.96,4.72230829]
[1747577497591,1.8795,173.05,172.95,73.12]
[1747577499598,5.7795,172.97,172.95,73.12]
[1747577502398,5.7795,172.97,172.95,78.9001]
[1747577502699,5.7795,172.97,172.95,73.12]
[1747577502896,72.86,173.02,172.95,73.12]
[1747577503404,5.7798,172.96,172.95,73.12]
[1747577503702,72.8,173.02,172.95,73.12]
[1747577503903,72.8,173.02,172.91,331.13627698]
[1747577504092,5.7801,172.96,172.93,5.7808]
[1747577504507,5.7802,172.95,172.93,5.7808]
[1747577504801,72.8,173.02,172.93,5.7808]
[1747577505404,72.8,173.02,172.94,5.7805]
[1747577505799,5.7798,172.97,172.94,5.7805]
[1747577506207,5.7798,172.97,172.94,10.5176375]
[1747577507202,5.7798,172.97,172.94,4.7371375]
[1747577507502,5.7798,172.97,172.95,4.7371375]
[1747577507703,5.7798,172.96,172.95,4.7371375]
[1747577516409,5.7809,172.93,172.91,73.12]
[1747577516614,72.8,173.02,172.91,73.12]
[1747577517514,5.78,172.96,172.91,73.12]
[1747577518016,5.78,172.96,172.92,4.73284524]
[1747577518202,5.7795,172.97,172.93,5.7806]
[1747577518403,72.52,173.01,172.93,5.7806]
[1747577518815,5.7797,172.97,172.93,5.7806]
[1747577519209,72.52,173.01,172.93,5.7806]
[1747577519414,5.7798,172.97,172.93,5.7806]
[1747577519810,3.8446,173.03,172.94,4.73284524]
[1747577520115,72.48,173.02,172.94,4.73284524]
[1747577520616,72.48,173.02,172.94,10.51324524]
[1747577520815,72.48,173.02,172.94,4.73284524]
[1747577521115,5.7798,172.97,172.95,4.73284524]
[1747577521314,72.48,173.02,172.95,4.73284524]
[1747577521719,5.7798,172.96,172.95,4.73284524]
[1747577522814,5.7798,172.96,172.92,5.7809]
[1747577524121,72.48,173.02,172.93,4.73336208]
[1747577524521,72.4,173.01,172.93,4.73336208]
[1747577524924,5.7805,172.94,172.93,4.73336208]
[1747577526715,5.7805,172.94,172.9,5.7817]
[1747577527120,5.7805,172.94,172.91,5.7815]
[1747577528729,5.7805,172.94,172.92,4.73414918]
[1747577530027,5.7805,172.94,172.93,4.73414918]
[1747577530528,72.4,173.01,172.93,4.73414918]
[1747577530933,5.7801,172.96,172.93,4.73414918]
[1747577531420,72.28,173.0,172.93,4.73414918]
[1747577531732,72.28,173.0,172.94,4.73414918]
[1747577532430,72.28,173.0,172.95,4.73414918]
[1747577533630,5.7798,172.96,172.95,4.73414918]
[1747577533833,72.28,173.0,172.95,4.73414918]
[1747577534430,5.7798,172.96,172.95,4.73414918]
[1747577534931,5.7803,172.95,172.92,5.7809]
[1747577535733,5.7806,172.94,172.91,5.7814]
[1747577536134,5.7806,172.94,172.9,5.34676422]
[1747577536433,5.781,172.93,172.91,4.73762224]
[1747577537628,72.28,173.0,172.91,4.73762224]
[1747577537832,5.7811,172.92,172.91,4.73762224]
[1747577538327,5.7811,172.92,172.9,5.34676422]
[1747577538526,5.7811,172.92,172.89,86.78194517]
[1747577538732,5.7817,172.91,172.89,72.52]
[1747577538927,72.28,173.0,172.89,72.52]
[1747577539127,1.9765,172.99,172.89,72.52]
[1747577539323,5.7818,172.9,172.89,72.52]
[1747577539526,72.12,172.95,172.87,5.34676422]
[1747577539929,3.7602,172.94,172.88,4.73945797]
[1747577540626,5.7821,172.89,172.88,4.73945797]
[1747577542332,5.7825,172.88,172.87,5.34676422]
[1747577542533,3.7602,172.94,172.84,74.4641]
[1747577542736,3.7602,172.94,172.84,72.52]
[1747577542931,5.7829,172.87,172.84,72.52]
[1747577543130,5.7829,172.87,172.84,78.3037]
[1747577543843,5.7829,172.87,172.85,4.73338169]
[1747577545237,3.7602,172.94,172.86,4.73338169]
[1747577545739,5.782,172.9,172.86,10.51648169]
[1747577546339,5.7822,172.89,172.87,4.73338169]
[1747577548248,5.7822,172.89,172.86,5.7831]
[1747577549140,5.7822,172.89,172.85,5.7834]
[1747577549338,5.7825,172.88,172.85,5.7834]
[1747577549539,3.7602,172.94,172.85,5.7834]
[1747577549741,3.7602,172.94,172.86,4.72813662]
[1747577550945,5.7826,172.88,172.86,4.72813662]
[1747577551444,5.7826,172.88,172.85,5.7834]
[1747577551843,71.92,172.9,172.81,5.7846]
[1747577552041,71.92,172.9,172.8,5.34676422]
[1747577552542,5.7842,172.83,172.8,11.13176422]
[1747577552844,5.7842,172.83,172.8,5.34676422]
[1747577553240,5.7842,172.83,172.81,4.72983176]
[1747577553443,5.7845,172.82,172.81,4.72983176]
[1747577555544,77.5675,172.85,172.75,9.6903]
[1747577556049,77.5675,172.85,172.75,3.9036]
[1747577556845,77.5675,172.85,172.76,4.72181803]
[1747577557041,77.5675,172.85,172.77,5.786]
[1747577557634,5.7853,172.8,172.77,5.786]
[1747577558749,5.7853,172.8,172.76,10.50821803]
[1747577559251,77.5675,172.85,172.76,4.72181803]
[1747577559648,77.5675,172.85,172.75,10.50851803]
[1747577559951,77.5675,172.85,172.75,4.72181803]
[1747577560553,5.7859,172.78,172.75,4.72181803]
[1747577560762,8.48004517,172.83,172.75,4.72181803]
[1747577561057,5.7871,172.75,172.7,5.34676422]
[1747577561553,5.7865,172.76,172.71,5.7881]
[1747577561755,71.8,172.79,172.7,5.34676422]
[1747577563155,5.7865,172.77,172.72,5.7875]
[1747577563944,5.7859,172.78,172.69,80.48004517]
[1747577565357,5.7859,172.78,172.69,72.0]
[1747577565557,5.7859,172.78,172.7,8.48004517]
[1747577567260,71.8,172.79,172.7,8.48004517]
[1747577567261,5.7862,172.77,172.73,5.7872]
[1747577567661,5.7859,172.78,172.7,8.48004517]
[1747577568258,5.7856,172.79,172.7,8.48004517]
[1747577569260,5.7856,172.79,172.75,5.7866]
[1747577569557,72.02,172.83,172.73,8.48004517]
[1747577569757,71.68,172.82,172.73,8.48004517]
[1747577569958,71.68,172.82,172.76,5.7862]
[1747577570159,71.68,172.82,172.74,72.02]
[1747577570460,71.68,172.82,172.77,5.7861]
[1747577570651,5.7851,172.81,172.77,5.7861]
[1747577571566,143.68,172.83,172.76,5.7864]
[1747577572460,143.68,172.83,172.65,499.96]
[1747577572662,5.7867,172.76,172.67,80.50004517]
[1747577573163,152.16004517,172.83,172.71,5.7879]
[1747577573962,152.16004517,172.83,172.72,5.7878]
[1747577574165,152.16004517,172.83,172.68,71.62]
[1747577574463,152.16004517,172.83,172.71,5.7881]
[1747577574662,5.7868,172.76,172.71,5.7881]
[1747577574864,5.7868,172.76,172.68,71.62]
[1747577575358,5.7868,172.76,172.72,5.7878]
[1747577575558,5.7861,172.78,172.7,8.48004517]
[1747577575857,143.68,172.83,172.7,8.48004517]
[1747577576054,143.68,172.83,172.73,5.7873]
[1747577577167,143.68,172.83,172.74,5.7871]
[1747577577464,143.68,172.83,172.72,72.04]
[1747577577668,5.7857,172.79,172.72,72.04]
[1747577577864,71.56,172.82,172.74,5.7869]
[1747577578162,71.56,172.82,172.72,72.04]
[1747577578365,71.56,172.82,172.73,5.7874]
[1747577578668,71.56,172.82,172.72,72.04]
[1747577579068,5.7864,172.77,172.73,5.7874]
[1747577579561,71.56,172.82,172.73,5.7874]
[1747577579562,5.7865,172.76,172.73,5.7874]
[1747577579760,5.7865,172.76,172.72,77.8277]
[1747577579961,5.7865,172.76,172.72,5.7877]
[1747577580568,5.787,172.75,172.71,5.7881]
[1747577580764,71.56,172.82,172.71,5.7881]
[1747577581063,71.56,172.82,172.7,71.54]
[1747577581266,5.7871,172.75,172.7,77.3282]
[1747577581465,71.56,172.82,172.7,77.3282]
[1747577582265,5.7871,172.75,172.7,77.3282]
[1747577582668,5.7872,172.74,172.7,77.3282]
[1747577582970,5.7872,172.74,172.71,5.7881]
[1747577583472,5.7869,172.75,172.71,5.7881]
[1747577583672,71.5,172.78,172.72,5.7878]
[1747577583863,5.7866,172.76,172.72,5.7878]
[1747577584063,71.5,172.78,172.7,80.02004517]
[1747577584364,5.7862,172.77,172.7,80.02004517]
[1747577584870,5.7862,172.77,172.74,5.7871]
[1747577585078,71.5,172.78,172.74,5.7871]
[1747577586170,5.7864,172.77,172.73,5.7874]
[1747577587470,71.5,172.78,172.73,5.7874]
[1747577587676,5.7866,172.76,172.73,5.7874]
[1747577588276,5.7862,172.77,172.74,5.7871]
[1747577588479,5.7862,172.77,172.71,4.70310471]
[1747577590270,5.7859,172.78,172.71,4.70310471]
[1747577590466,71.4,172.81,172.72,3.7427]
[1747577590875,71.4,172.81,172.74,5.7869]
[1747577591079,71.4,172.81,172.72,8.44580471]
[1747577591480,71.4,172.81,172.73,5.7873]
[1747577592679,5.7864,172.77,172.73,5.7873]
[1747577593983,5.7864,172.77,172.74,5.7871]
[1747577594489,5.7859,172.78,172.74,5.7871]
[1747577594990,71.4,172.81,172.74,5.7871]
[1747577595790,5.7862,172.77,172.74,5.7871]
[1747577597392,5.7862,172.77,172.75,4.72754048]
[1747577597996,5.7859,172.78,172.75,4.72754048]
[1747577598187,5.7859,172.78,172.75,10.51414048]
[1747577598696,5.7862,172.77,172.75,4.72754048]
[1747577598888,71.4,172.81,172.76,4.72754048]
[1747577599096,5.7861,172.78,172.76,4.72754048]
[1747577600397,5.7861,172.78,172.75,5.7867]
[1747577600593,71.4,172.81,172.72,3.7427]
[1747577601096,71.4,172.81,172.73,5.7872]
[1747577601298,71.4,172.81,172.72,3.7427]
[1747577601793,5.7861,172.78,172.74,5.787]
[1747577602199,71.4,172.81,172.73,4.73515137]
[1747577602997,5.7869,172.75,172.73,4.73515137]
[1747577603497,5.7869,172.75,172.74,4.73515137]
[1747577604601,5.7879,172.72,172.7,76.8711343]
[1747577604994,71.18,172.76,172.7,76.8711343]
[1747577605188,5.7882,172.71,172.7,76.8711343]
[1747577605598,5.7882,172.71,172.7,5.3311343]
[1747577607206,5.7882,172.71,172.7,4.72515265]
[1747577608504,5.7889,172.69,172.66,71.56]
[1747577609607,71.1,172.73,172.66,71.56]
[1747577610407,71.1,172.73,172.67,4.72096449]
[1747577611610,71.1,172.73,172.67,10.51036449]
[1747577611809,71.1,172.73,172.67,4.72096449]
[1747577612312,5.7886,172.7,172.62,76.4511343]
[1747577612608,71.1,172.73,172.62,76.4511343]
[1747577612801,71.06,172.73,172.62,76.4511343]
[1747577613003,5.7879,172.72,172.68,5.7889]
[1747577613202,71.06,172.73,172.64,8.48004517]
[1747577613510,5.7879,172.72,172.67,5.7892]
[1747577613707,71.06,172.73,172.62,71.12]
[1747577613911,71.06,172.73,172.65,4.72181073]
[1747577614306,5.7888,172.7,172.66,5.7898]
[1747577614813,5.7883,172.71,172.66,5.7898]
[1747577615008,71.06,172.73,172.66,5.7898]
[1747577615609,71.06,172.73,172.65,5.7901]
[1747577615808,71.06,172.73,172.62,71.12]
[1747577616012,5.7894,172.68,172.63,5.7908]
[1747577617517,5.7894,172.68,172.64,4.71917631]
[1747577618817,5.7894,172.68,172.64,5.7904]
[1747577620417,5.7899,172.66,172.62,76.9111]
[1747577620619,5.7899,172.66,172.62,71.12]
[1747577620824,71.06,172.73,172.62,71.12]
[1747577621019,71.06,172.73,172.63,5.7908]
[1747577621521,5.7894,172.68,172.64,5.7905]
[1747577622322,5.7896,172.67,172.64,5.7905]
[1747577625621,5.7893,172.68,172.64,5.7905]
[1747577626623,5.7893,172.68,172.65,5.7902]
[1747577627122,5.7893,172.68,172.64,5.7904]
[1747577627618,5.7889,172.69,172.65,5.7899]
[1747577627820,70.9,172.71,172.61,75.84741419]
[1747577628426,5.7895,172.67,172.61,75.84741419]
[1747577629026,5.7895,172.67,172.64,5.7902]
[1747577629826,5.7892,172.68,172.65,5.7901]
[1747577630123,70.86,172.71,172.65,5.7901]
[1747577630824,70.86,172.71,172.66,5.7898]
[1747577631026,70.86,172.71,172.61,71.14]
[1747577631325,5.7892,172.68,172.61,71.14]
[1747577631524,5.7892,172.68,172.62,4.70721398]
[1747577632829,5.7892,172.68,172.65,5.7902]
[1747577633715,5.7892,172.68,172.64,5.7904]
[1747577633924,5.7895,172.67,172.64,5.7904]
[1747577634426,70.86,172.71,172.65,5.7901]
[1747577634923,5.7891,172.69,172.65,5.7901]
[1747577635633,5.7883,172.71,172.63,8.48004517]
[1747577635832,1.8556,172.76,172.66,8.48004517]
[1747577636127,5.7879,172.72,172.69,5.7886]
[1747577636424,72.6156,172.76,172.66,79.62004517]
[1747577636730,5.7876,172.73,172.66,79.62004517]
[1747577637633,5.7876,172.73,172.7,5.7884]
[1747577638126,5.7876,172.73,172.69,5.7888]
[1747577639325,5.7876,172.73,172.7,5.7885]
[1747577639528,5.7876,172.73,172.67,4.71924156]
[1747577639828,5.7876,172.73,172.68,4.71924156]
[1747577640029,5.7876,172.73,172.69,5.7886]
[1747577640439,5.788,172.72,172.69,5.7886]
[1747577640630,72.5756,172.76,172.69,5.7886]
[1747577640831,72.5756,172.76,172.7,5.7884]
[1747577641127,5.7876,172.73,172.68,4.71924156]
[1747577641729,1.9674,172.77,172.68,4.71924156]
[1747577641938,70.7,172.79,172.69,8.48004517]
[1747577642228,141.38,172.79,172.69,13.19928673]
[1747577642838,5.7868,172.75,172.71,5.7881]
[1747577643034,141.38,172.79,172.69,4.71924156]
[1747577643639,141.38,172.79,172.68,76.4888]
[1747577644235,141.38,172.79,172.68,70.7]
[1747577644734,8.48004517,172.78,172.66,1.8503]
[1747577644934,1.8897,172.77,172.66,1.8503]
[1747577645235,5.7891,172.69,172.66,1.8503]
[1747577647134,5.7891,172.69,172.67,4.73511576]
[1747577648039,5.7892,172.68,172.67,4.73511576]
[1747577656646,5.7899,172.66,172.64,70.7]
[1747577656945,70.62,172.73,172.64,70.7]
[1747577657247,5.7899,172.66,172.64,70.7]
[1747577658447,5.7912,172.62,172.61,1.18e-06]
[1747577662842,5.7912,172.62,172.58,7.09586412]
[1747577663048,5.7917,172.61,172.55,5.7935]
[1747577663444,5.7919,172.6,172.55,5.7935]
[1747577663748,5.7919,172.6,172.54,7.6659]
[1747577665950,5.7925,172.59,172.54,1.8721]
[1747577666645,5.7919,172.6,172.54,1.8721]
[1747577667049,5.7923,172.59,172.55,5.7933]
[1747577667245,70.44,172.61,172.54,1.8721]
[1747577667746,5.7926,172.58,172.54,1.8721]
[1747577667946,70.44,172.61,172.54,1.8721]
[1747577668147,70.44,172.61,172.51,70.7]
[1747577668748,70.44,172.61,172.52,9.819]
[1747577669749,70.44,172.61,172.52,4.0247]
[1747577669949,5.7935,172.56,172.52,4.0247]
[1747577670343,5.7935,172.56,172.52,2.0121]
[1747577671044,5.7937,172.55,172.52,2.0121]
[1747577671651,72.3455,172.61,172.51,70.7]
[1747577672353,5.7943,172.53,172.49,5.7955]
[1747577673054,70.4,172.56,172.48,1.8807]
[1747577673555,78.88004517,172.56,172.41,15.57590929]
[1747577673757,2.0014,172.55,172.41,78.88004517]
[1747577673959,2.0014,172.55,172.41,70.4]
[1747577674257,2.0014,172.55,172.44,5.797]
[1747577674258,5.7959,172.48,172.44,5.797]
[1747577674559,70.4,172.5,172.41,70.4]
[1747577674745,5.7959,172.49,172.44,5.7971]
[1747577675065,70.4,172.5,172.41,70.4]
[1747577675354,70.4,172.5,172.45,5.7967]
[1747577675859,70.4,172.5,172.44,5.7971]
[1747577676151,70.4,172.5,172.41,70.4]
[1747577676355,5.7966,172.46,172.42,5.7977]
[1747577676559,70.4,172.5,172.42,5.7977]
[1747577676758,70.4,172.5,172.41,70.4]
[1747577676950,70.4,172.5,172.41,76.198]
[1747577677257,70.4,172.5,172.41,70.4]
[1747577677556,5.7961,172.48,172.43,5.7973]
[1747577677759,70.4,172.5,172.42,8.48004517]
[1747577677959,72.2392,172.52,172.42,8.48004517]
[1747577678259,5.795,172.51,172.42,8.48004517]
[1747577678654,72.2392,172.52,172.47,5.7962]
[1747577678951,5.7952,172.5,172.41,70.4]
[1747577679149,5.7952,172.5,172.42,8.48004517]
[1747577679352,5.7952,172.5,172.46,5.7963]
[1747577680258,72.2392,172.52,172.41,78.88004517]
[1747577680648,5.7957,172.49,172.41,78.88004517]
[1747577680849,5.7957,172.49,172.41,70.4]
[1747577681057,5.7957,172.49,172.42,8.48004517]
[1747577681459,5.7957,172.49,172.44,5.797]
[1747577681659,5.7953,172.5,172.42,8.48004517]
[1747577682060,5.7953,172.5,172.46,5.7963]
[1747577682260,5.7963,172.47,172.41,70.4]
[1747577682654,72.2392,172.52,172.44,5.7972]
[1747577682855,5.7961,172.48,172.44,5.7972]
[1747577683468,5.7963,172.47,172.43,14.27754517]
[1747577683760,72.2392,172.52,172.43,14.27754517]
[1747577683958,5.7964,172.47,172.43,14.27754517]
[1747577684162,72.2392,172.52,172.44,5.7972]
[1747577684559,5.7965,172.47,172.43,8.48004517]
[1747577684861,72.2392,172.52,172.43,14.27754517]
[1747577685463,72.2392,172.52,172.43,8.48004517]
[1747577686067,72.2392,172.52,172.41,76.1981]
[1747577686258,72.2392,172.52,172.41,70.4]
[1747577686862,72.2392,172.52,172.41,76.1982]
[1747577687061,80.71924517,172.52,172.37,78.92004517]
[1747577687356,581.63924517,172.52,172.37,70.44]
[1747577688061,5.7987,172.4,172.37,70.44]
[1747577688661,5.799,172.39,172.37,70.44]
[1747577688861,70.32,172.44,172.37,70.44]
[1747577689867,5.7989,172.4,172.37,70.44]
[1747577690062,70.32,172.44,172.35,8.48004517]
[1747577690263,70.32,172.44,172.33,70.46]
[1747577690465,72.2226,172.44,172.33,76.2607]
[1747577690762,74.1483,172.44,172.33,70.46]
[1747577690962,5.8002,172.36,172.33,70.46]
[1747577692064,70.32,172.39,172.33,70.46]
[1747577693171,76.1191,172.39,172.35,5.8]
[1747577693866,70.32,172.39,172.35,5.8]
[1747577694166,70.32,172.39,172.33,70.46]
[1747577694564,70.3,172.43,172.34,8.48004517]
[1747577695266,70.3,172.43,172.39,5.7989]
[1747577695466,70.3,172.44,172.37,8.48004517]
[1747577695669,76.0973,172.44,172.37,8.48004517]
[1747577696568,76.0973,172.44,172.4,5.7983]
[1747577696872,76.0973,172.44,172.37,8.48004517]
[1747577697060,76.0973,172.44,172.4,5.7985]
[1747577697370,5.7976,172.43,172.4,5.7985]
[1747577697566,1.8644,172.48,172.4,5.7985]
[1747577697761,70.28,172.47,172.41,5.7982]
[1747577698177,5.7971,172.45,172.41,5.7982]
[1747577699276,5.7972,172.44,172.41,5.7982]
[1747577700572,5.797,172.45,172.41,5.7982]
[1747577700773,70.28,172.47,172.38,72.4421]
[1747577700976,70.28,172.47,172.39,1.9341]
[1747577701168,5.7968,172.46,172.42,5.7978]
[1747577701673,5.7968,172.46,172.43,5.7976]
[1747577701971,5.7963,172.47,172.4,8.48004517]
[1747577702162,70.48,172.48,172.4,8.48004517]
[1747577702368,5.7972,172.45,172.4,8.48004517]
[1747577702568,70.48,172.48,172.38,142.6821]
[1747577702879,5.7979,172.43,172.38,142.6821]
[1747577703476,5.7973,172.44,172.4,5.7986]
[1747577703676,70.48,172.48,172.38,142.6821]
[1747577703976,70.48,172.48,172.42,5.7978]
[1747577704773,502.7991,172.52,172.4,5.7985]
[1747577704972,140.46,172.51,172.38,72.4421]
[1747577705280,140.46,172.51,172.39,5.7988]
[1747577705777,5.7975,172.44,172.38,72.4421]
[1747577705973,140.46,172.51,172.38,72.4421]
[1747577706173,140.46,172.51,172.39,1.9557]
[1747577706480,140.46,172.51,172.43,5.7973]
[1747577706680,140.46,172.51,172.4,8.48004517]
[1747577706872,5.796,172.48,172.4,8.48004517]
[1747577707178,140.46,172.51,172.43,5.7974]
[1747577707386,5.7965,172.47,172.39,10.43574517]
[1747577707676,140.46,172.51,172.42,5.7978]
[1747577707870,5.7964,172.47,172.39,10.43574517]
[1747577708068,140.46,172.51,172.42,5.7978]
[1747577708678,5.7965,172.47,172.43,5.7975]
[1747577709078,140.46,172.51,172.39,10.43574517]
[1747577709374,140.42,172.51,172.44,5.797]
[1747577709779,5.7962,172.47,172.43,5.7975]
[1747577710170,5.7962,172.47,172.39,10.43574517]
[1747577710379,5.796,172.48,172.39,10.43574517]
[1747577711078,5.796,172.48,172.44,5.797]
[1747577711777,140.4,172.51,172.43,70.24]
[1747577711778,70.24,172.51,172.43,70.24]
[1747577711977,70.16,172.52,172.43,70.24]
[1747577712282,5.7951,172.51,172.43,70.24]
[1747577712483,70.16,172.52,172.45,8.48004517]
[1747577712689,75.9548,172.52,172.48,5.7957]
[1747577713075,75.9548,172.52,172.45,8.48004517]
[1747577713279,1.8189,172.54,172.49,5.7952]
[1747577713680,70.24,172.55,172.45,8.48004517]
[1747577713883,5.7943,172.53,172.5,5.7952]
[1747577714082,70.24,172.55,172.5,5.7952]
[1747577714285,70.24,172.55,172.46,1.8896]
[1747577714584,5.7943,172.53,172.46,1.8896]
[1747577715172,70.24,172.55,172.46,1.8896]
[1747577715374,5.7946,172.52,172.46,1.8896]
[1747577715683,70.24,172.55,172.46,1.8896]
[1747577715884,5.7941,172.54,172.46,1.8896]
[1747577716086,5.7941,172.54,172.5,5.7951]
[1747577716279,5.7941,172.54,172.47,70.24]
[1747577716478,5.7941,172.54,172.51,5.7949]
[1747577716678,76.0336,172.55,172.47,70.24]
[1747577716886,5.7936,172.55,172.48,8.48004517]
[1747577717084,174.04684124,172.56,172.48,8.48004517]
[1747577717385,70.1,172.58,172.48,8.48004517]
[1747577717588,70.1,172.58,172.52,5.7943]
[1747577718389,5.7935,172.56,172.53,5.7941]
[1747577719190,5.7935,172.56,172.52,5.7944]
[1747577719486,142.1823,172.59,172.48,8.48004517]
[1747577719989,5.7941,172.54,172.48,8.48004517]
[1747577721091,5.7936,172.55,172.48,8.48004517]
[1747577721388,5.7936,172.55,172.51,5.7946]
[1747577721687,5.7936,172.55,172.48,8.48004517]
[1747577721887,5.7936,172.55,172.52,5.7945]
[1747577723690,5.7933,172.56,172.48,8.48004517]
[1747577724993,70.06,172.58,172.48,8.48004517]
[1747577725595,70.06,172.58,172.5,5.795]
[1747577725898,70.06,172.58,172.48,8.48004517]
[1747577726602,5.7941,172.54,172.48,8.48004517]
[1747577727492,5.7942,172.53,172.48,8.48004517]
[1747577727700,70.06,172.58,172.48,8.48004517]
[1747577727900,70.06,172.58,172.51,5.7948]
[1747577728294,5.794,172.54,172.51,5.7948]
[1747577728492,70.06,172.58,172.5,5.7951]
[1747577728798,5.7942,172.54,172.5,5.7951]
[1747577729194,70.06,172.58,172.48,8.48004517]
[1747577729394,5.7941,172.54,172.48,8.48004517]
[1747577729596,70.06,172.58,172.48,8.48004517]
[1747577729890,5.7941,172.54,172.5,5.795]
[1747577730599,70.06,172.58,172.48,5.7958]
[1747577730798,70.06,172.58,172.47,70.24]
[1747577731299,70.06,172.58,172.49,5.7955]
[1747577731700,5.795,172.51,172.47,70.24]
[1747577732895,5.7946,172.52,172.48,5.7956]
[1747577733101,5.7946,172.52,172.47,70.24]
[1747577734600,5.7946,172.52,172.49,5.7955]
[1747577734802,70.06,172.58,172.47,70.24]
[1747577735102,70.06,172.58,172.51,5.7948]
[1747577736299,70.06,172.58,172.5,5.7951]
[1747577737001,5.7944,172.53,172.5,5.7951]
[1747577737406,5.7939,172.55,172.47,70.24]
[1747577737598,69.88,172.56,172.47,70.24]
[1747577737901,75.6734,172.56,172.52,5.7944]
[1747577738699,5.7936,172.55,172.52,5.7944]
[1747577738902,69.88,172.56,172.52,5.7944]
[1747577739297,75.6734,172.56,172.52,5.7944]
[1747577740003,5.7935,172.55,172.52,5.7944]
[1747577742107,5.7935,172.55,172.51,5.7948]
[1747577742404,5.7939,172.54,172.51,5.7948]
[1747577742798,5.7939,172.54,172.47,70.24]
[1747577743001,5.7939,172.54,172.5,5.7951]
[1747577743201,5.7939,172.54,172.47,70.24]
[1747577743402,5.7943,172.53,172.47,70.24]
[1747577743705,69.84,172.58,172.47,70.24]
[1747577744098,5.7948,172.52,172.48,5.7957]
[1747577744501,5.7948,172.52,172.47,70.24]
[1747577745806,5.7948,172.52,172.49,5.7955]
[1747577746308,5.7943,172.53,172.5,5.7951]